{"text_format":"1","workbook":"xlsx","n_sheets":8,"sheets":["стр.1","стр.2 ","Таблица 1","Таблица 2","Таблица 2.1","Таблица 2.2","Таблица 3","Таблица 4"],"not_rendered":{"charts":0,"images":0,"macros":0,"external_links":0,"defined_names":0,"comments":0,"pivot_tables":0},"unopened":[],"bounds":{"document_bytes":16777216,"sheet_cells":100000,"rows_first":2000,"rows_last":500,"rows_between":2000,"halvings":0,"cell_chars":16384,"cell_head_chars":4096},"cells_cut":0,"cells_raw":0,"read":"whole","date_system":"1900"}

{"sheet":"стр.1","index":0,"n_rows":41,"n_cols":96,"rows_kept":41,"cut":false,"hidden":false,"merged":[[2,56,2,104],[2,112,2,145],[3,56,3,104],[3,112,3,145],[4,76,4,104],[4,132,4,145],[5,56,5,75],[5,76,5,104],[5,112,5,131],[5,132,5,145],[6,65,6,68],[6,72,6,86],[6,87,6,90],[6,91,6,94],[6,121,6,124],[6,128,6,145],[15,0,15,104],[15,112,15,145],[16,27,16,67],[18,83,18,104],[19,71,19,81],[19,83,19,104],[20,144,20,145],[21,83,21,104],[22,83,22,104],[23,22,26,69],[23,83,23,104],[23,134,26,145],[24,83,24,104],[25,83,27,104],[20,25,20,28],[20,32,20,49],[20,50,20,53],[20,54,20,57],[20,83,20,104],[20,137,20,140],[36,26,40,82],[36,138,40,145],[28,22,28,70],[28,83,28,104],[28,134,28,145],[29,83,29,104],[31,26,34,82],[31,138,34,145]]}
[]
[]
[null,null,null,null,null,null,null,null,null,null,null,null,null,null,null,null,null,null,null,null,null,null,null,null,null,null,null,null,null,null,null,null,null,null,null,null,null,null,null,null,null,null,null,null,null,null,null,null,null,null,null,null,null,null,null,null,"\"УТВЕРЖДАЮ\""]
[null,null,null,null,null,null,null,null,null,null,null,null,null,null,null,null,null,null,null,null,null,null,null,null,null,null,null,null,null,null,null,null,null,null,null,null,null,null,null,null,null,null,null,null,null,null,null,null,null,null,null,null,null,null,null,null,"Заведующий муниципальным бюджетным дошкольным образовательным учреждением детским садом \"Улыбка\" с. Александров-Гай, Александрово-Гайский район, Саратовской области"]
[null,null,null,null,null,null,null,null,null,null,null,null,null,null,null,null,null,null,null,null,null,null,null,null,null,null,null,null,null,null,null,null,null,null,null,null,null,null,null,null,null,null,null,null,null,null,null,null,null,null,null,null,null,null,null,null,null,null,null,null,null,null,null,null,null,null,null,null,null,null,null,null,null,null,null,null,"Т.В. Леонова"]
[null,null,null,null,null,null,null,null,null,null,null,null,null,null,null,null,null,null,null,null,null,null,null,null,null,null,null,null,null,null,null,null,null,null,null,null,null,null,null,null,null,null,null,null,null,null,null,null,null,null,null,null,null,null,null,null,"(подпись)",null,null,null,null,null,null,null,null,null,null,null,null,null,null,null,null,null,null,null,"(расшифровка подписи)"]
[null,null,null,null,null,null,null,null,null,null,null,null,null,null,null,null,null,null,null,null,null,null,null,null,null,null,null,null,null,null,null,null,null,null,null,null,null,null,null,null,null,null,null,null,null,null,null,null,null,null,null,null,null,null,null,null,null,null,null,null,null,null,null,null,"\"","07",null,null,null,"\"",null,null,"мая",null,null,null,null,null,null,null,null,null,null,null,null,null,null,20,null,null,null,"18",null,null,null," г."]
[]
[]
[]
[]
[]
[]
[]
[]
["План финансово-хозяйственной деятельности"]
[null,null,null,null,null,null,null,null,null,null,null,null,null,null,null,null,null,null,null,null,null,null,null,null,null,null,null,"на 08 мая   2018 г."]
[]
[]
[null,null,null,null,null,null,null,null,null,null,null,null,null,null,null,null,null,null,null,null,null,null,null,null,null,null,null,null,null,null,null,null,null,null,null,null,null,null,null,null,null,null,null,null,null,null,null,null,null,null,null,null,null,null,null,null,null,null,null,null,null,null,null,null,null,null,null,null,null,null,null,"Форма по КФД"]
[null,null,null,null,null,null,null,null,null,null,null,null,null,null,null,null,null,null,null,null,null,null,null,null,"\"","07",null,null,null,"\"",null,null,"мая",null,null,null,null,null,null,null,null,null,null,null,null,null,null,null,null,null,20,null,null,null,"18",null,null,null," г.",null,null,null,null,null,null,null,null,null,null,null,null,"Дата",null,null,null,null,null,null,null,null,null,null,null,"07.05.2018"]
[]
[]
["Наименование ",null,null,null,null,null,null,null,null,null,null,null,null,null,null,null,null,null,null,null,null,null,"Муниципальное бюджетное дошкольное образовательное учреждение детский сад \"Улыбка\" с. Александров-Гай, Александрово-Гайский район, Саратовской области",null,null,null,null,null,null,null,null,null,null,null,null,null,null,null,null,null,null,null,null,null,null,null,null,null,null,null,null,null,null,null,null,null,null,null,null,null,null,null,null,null,null,null,null,null,null,null,null,"по ОКПО",null,null,null,null,null,null,null,null,null,null,null,"59392018"]
["муниципального"]
["учреждения"]
["(подразделения)"]
[]
["ИНН/КПП",null,null,null,null,null,null,null,null,null,null,null,null,null,null,null,null,null,null,null,null,null,"6401003264/640101001"]
["Единица измерения: руб.",null,null,null,null,null,null,null,null,null,null,null,null,null,null,null,null,null,null,null,null,null,null,null,null,null,null,null,null,null,null,null,null,null,null,null,null,null,null,null,null,null,null,null,null,null,null,null,null,null,null,null,null,null,null,null,null,null,null,null,null,null,null,null,null,null,null,null,null,null,null,"по ОКЕИ",null,null,null,null,null,null,null,null,null,null,null,"383"]
[]
["Наименование органа, ",null,null,null,null,null,null,null,null,null,null,null,null,null,null,null,null,null,null,null,null,null,null,null,null,null," Администрации Александрово-Гайского муниципального района Саратовской области"]
["осуществляющего"]
["функции и полномочия "]
["учредителя"]
[]
["Адрес фактического ",null,null,null,null,null,null,null,null,null,null,null,null,null,null,null,null,null,null,null,null,null,null,null,null,null,"413371, Саратовская обл, Александрово-Гайский район, с. Новоалександровка , ул. Крайняя  5 \"А\""]
["местонахождения"]
["мунципального"]
["учреждения "]
["(подразделения)"]

{"sheet":"стр.2 ","index":1,"n_rows":21,"n_cols":71,"rows_kept":21,"cut":false,"hidden":false,"merged":[[13,1,13,16],[1,0,1,127],[3,0,3,127],[4,0,4,104],[5,0,5,104],[6,0,6,127],[7,0,7,104],[8,0,8,104],[9,0,9,104],[10,0,10,127],[11,0,11,127],[12,0,12,107],[20,1,20,69],[20,70,20,98],[14,1,14,99],[15,8,15,36],[16,0,16,104],[17,8,17,36],[18,0,18,104],[19,1,19,16]]}
[]
["I. Основные сведения о деятельности муниципального учреждения "]
[]
["1.1. Цели деятельности муниципального учреждения:"]
["1.1.1 Образовательная деятельность по образовательным программам дошкольного образования, присмотр и уход за детьми.  "]
["1.1.2 Создание оптимальных благоприятных условий для полноценного образования и воспитания."]
["1.2. Виды деятельности муниципального учреждения :"]
["1.2.1. Дошкольного образования для детей."]
["1.2.2. Осуществление присмотра и ухода за воспитанниками, реализацию общеобразовательной программы дошкольного образования в соответствии с ФГОС."]
["1.3. Перечень услуг (работ), относящихся в соответствии с уставом положением подразделения) к основным видам деятельности мунципального учреждения, предоставление которых для физических и юридических лиц осуществляется, в том числе за плату:"]
["1.3.1. Реализация основных общеобразовательных программ дошкольного образования."]
["1.3.2. Присмотр и уход."]
["1.4. Общая балансовая стоимость недвижимого муниципального имущества на дату составления Плана - 2455334,22 рублей,\n"]
[4,"в том числе:"]
[null,"стоимость имущества, закрепленного на праве оперативного управления"]
[null,null,null,null,null,null,null,null,"2455334,22_ рублей,"]
["стоимость имущества, приобретенного учреждением за счет доходов, полученных от иной приносящей доход деятельности"]
[null,null,null,null,null,null,null,null,"0,00 рублей,"]
["1.5. Общая балансовая стоимость движимого муниципального имущества на дату составления Плана 681 754,26 рублей,\n"]
[null,"в том числе:"]
[null,"балансовая стоимостьособо ценного движимого имущества",null,null,null,null,null,null,null,null,null,null,null,null,null,null,null,null,null,null,null,null,null,null,null,null,null,null,null,null,null,null,null,null,null,null,null,null,null,null,null,null,null,null,null,null,null,null,null,null,null,null,null,null,null,null,null,null,null,null,null,null,null,null,null,null,null,null,null,null,"138 673,29  рублей"]

{"sheet":"Таблица 1","index":2,"n_rows":32,"n_cols":3,"rows_kept":32,"cut":false,"hidden":false,"merged":[[2,0,2,2],[3,0,3,2],[4,0,4,2]]}
[null,null,"Таблица 1"]
[]
["Показатели финансового состояния учреждения (подразделения)"]
["на  07  мая   20  18 г."]
["(последнюю отчетную дату)"]
[]
[]
["N п/п","Наименование показателя","Сумма, тыс. руб."]
[1,2,3]
[null,"Нефинансовые активы, всего:",3137088.48]
[null,"из них:"]
[null,"недвижимое имущество, всего:",2455334.2200000002]
[null,"в том числе:"]
[null,"остаточная стоимость"]
[null,"особо ценное движимое имущество, всего:",138673.29]
[null,"в том числе:"]
[null,"остаточная стоимость",31044]
[null,"Финансовые активы, всего:",{"$f":"C20+C25","v":50518.82}]
[null,"из них:"]
[null,"денежные средства учреждения, всего",{"$f":"C22","v":50518.82}]
[null,"в том числе:"]
[null,"денежные средства учреждения на счетах",50518.82]
[null,"денежные средства учреждения, размещенные на депозиты в кредитной организации"]
[null,"иные финансовые инструменты"]
[null,"дебиторская задолженность по доходам",0]
[null,"дебиторская задолженность по расходам"]
[null,"Обязательства, всего:",{"$f":"C30","v":486128.57}]
[null,"из них:"]
[null,"долговые обязательства"]
[null,"кредиторская задолженность:",{"$f":"202836.43+139369.06+84640.83+59282.25","v":486128.57}]
[null,"в том числе:"]
[null,"просроченная кредиторская задолженность",{"$f":"59282.25+170605.26","v":229887.51}]

{"sheet":"Таблица 2","index":3,"n_rows":38,"n_cols":11,"rows_kept":38,"cut":false,"hidden":false,"merged":[[29,6,30,6],[29,7,30,7],[9,5,10,5],[19,5,20,5],[33,10,34,10],[29,9,30,9],[29,10,30,10],[29,5,30,5],[33,5,34,5],[29,8,30,8],[33,8,34,8],[33,6,34,6],[33,7,34,7],[33,9,34,9],[19,10,20,10],[19,6,20,6],[33,1,34,1],[33,2,34,2],[33,3,34,3],[33,4,34,4],[19,1,20,1],[19,2,20,2],[19,3,20,3],[19,4,20,4],[29,3,30,3],[29,4,30,4],[9,1,10,1],[9,2,10,2],[9,3,10,3],[9,4,10,4],[29,1,30,1],[29,2,30,2],[1,0,1,4],[5,5,6,5],[3,0,6,0],[3,1,6,1],[3,2,6,2],[3,3,3,10],[4,3,6,3],[4,4,4,10],[5,4,6,4],[19,7,20,7],[5,9,5,10],[9,10,10,10],[5,6,6,6],[5,7,6,7],[5,8,6,8],[19,9,20,9],[19,8,20,8],[9,7,10,7],[9,8,10,8],[9,6,10,6],[9,9,10,9]]}
[null,null,null,null,null,null,null,null,null,null,"Таблица 2"]
["Показатели по поступлениям и выплатам учреждения (подразделения) на",null,null,null,null,null,"20___ г."]
[]
["Наименование показателя","Код строки","КБК РФ","Объем финансового обеспечения, руб. (с точностью до двух знаков после запятой - 0,00)"]
[null,null,null,"всего","в том числе:"]
[null,null,null,null,"субсидии на финансовое обеспечение выполнения муниципального задания из местного бюджета","субсидии на финансовое обеспечение выполнения государственного задания из бюджета Федерального фонда обязательного медицинского страхования","субсидии, предоставляемые в соответствии с абзацем вторым пункта 1 статьи 78.1 Бюджетного кодекса Российской Федерации","субсидии на осуществление капитальных вложений","средства обязательного медицинского страхования","поступления от оказания услуг (выполнения работ) на платной основе и от иной приносящей доход деятельности"]
[null,null,null,null,null,null,null,null,null,"всего","из них гранты"]
[1,2,3,4,5,"5.1",6,7,8,9,10]
["Поступления от доходов, всего:",100,"X",{"$f":"D10+D12+D13+D15","v":5242729.5599999987},{"$f":"E12","v":4679937.2899999991},{"$f":"F10+F12+F13","v":0},{"$f":"G15","v":149992.26999999999},{"$f":"H15","v":0},{"$f":"I10+I12+I13","v":0},{"$f":"J12","v":412800}]
["в том числе:",110,null,null,"X",null,"X","X",null,null,"X"]
["доходы от собственности"]
["доходы от оказания услуг, работ",120,130,{"$f":"E12+J12","v":5092737.2899999991},{"$f":"'Таблица 2.2'!H10","v":4679937.2899999991},0,"X","X",null,{"$f":"'Таблица 2.2'!H14","v":412800}]
["доходы от штрафов, пеней, иных сумм принудительного изъятия",130,null,null,"X",null,"X","X",null,null,"X"]
["безвозмездные поступления от наднациональных организаций, правительств иностранных государств, международных финансовых организаций",140,null,null,"X",null,"X","X",null,null,"X"]
["иные субсидии, предоставленные из бюджета",150,180,{"$f":"G15","v":149992.26999999999},"X",null,{"$f":"'Таблица 2.2'!H81","v":149992.26999999999},{"$f":"H28","v":0},null,"X","X"]
["прочие доходы",160,null,null,"X",null,"X","X"]
["доходы от операций с активами",180,"X",null,"X",null,"X","X",null,null,"X"]
["Выплаты по расходам, всего:",200,"X",{"$f":"E18+G18+J18","v":5242729.5600000005},{"$f":"E19+E24+E28","v":4679937.29},null,{"$f":"G24+G28+G19","v":149992.27000000002},{"$f":"H28","v":0},null,{"$f":"J28","v":412800}]
["в том числе на: выплаты персоналу всего:",210,110,{"$f":"E19+G19","v":4367269.7300000004},{"$f":"'Таблица 2.2'!H20","v":4265588.7300000004},null,{"$f":"G20","v":101681}]
["из них:",211,110,{"$f":"E20+G20","v":4367269.7300000004},{"$f":"'Таблица 2.2'!H20","v":4265588.7300000004},null,{"$f":"'Таблица 2.2'!H83+'Таблица 2.2'!H84+'Таблица 2.2'!H85+'Таблица 2.2'!H86+'Таблица 2.2'!H87","v":101681}]
["оплата труда и начисления на выплаты по оплате труда"]
["социальные и иные выплаты населению, всего",220]
["из них:"]
["уплату налогов, сборов и иных платежей, всего",230,850,{"$f":"E24+G24","v":11983.56},{"$f":"'Таблица 2.2'!H48","v":6983.5599999999995},null,{"$f":"'Таблица 2.2'!H90","v":5000}]
["из них:"]
["безвозмездные перечисления организациям",240]
["прочие расходы (кроме расходов на закупку товаров, работ, услуг)",250]
["расходы на закупку товаров, работ, услуг, всего",260,"X",{"$f":"E28+G28+J28","v":863476.27},{"$f":"'Таблица 2.2'!H27","v":407365},null,{"$f":"'Таблица 2.2'!H88+'Таблица 2.2'!H89+'Таблица 2.2'!H91","v":43311.270000000004},null,null,{"$f":"'Таблица 2.2'!H14","v":412800}]
["Поступление финансовых активов, всего:",300,"X"]
["из них:",310]
["увеличение остатков средств"]
["прочие поступления",320]
["Выбытие финансовых активов, всего",400]
["из них:",410]
["уменьшение остатков средств"]
["прочие выбытия",420]
["Остаток средств на начало года",500,"X"]
["Остаток средств на конец года",600,"X"]

{"sheet":"Таблица 2.1","index":4,"n_rows":15,"n_cols":12,"rows_kept":15,"cut":false,"hidden":false,"merged":[[6,6,6,11],[7,6,7,8],[7,9,7,11],[0,10,0,11],[1,0,1,11],[2,0,2,11],[5,0,8,0],[5,1,8,1],[5,2,8,2],[5,3,5,11],[6,3,7,5]]}
[null,null,null,null,null,null,null,null,null,null,"Таблица 2.1"]
["Показатели выплат по расходам на закупку товаров, работ, услуг учреждения (подразделения)"]
["на 07 мая   2018 г."]
[]
[]
["Наименование показателя","Код строки","Год начала закупки","Сумма выплат по расходам на закупку товаров, работ и услуг, руб. (с точностью до двух знаков после запятой - 0,00"]
[null,null,null,"всего на закупки",null,null,"в том числе:"]
[null,null,null,null,null,null,"в соответствии с Федеральным законом от 5 апреля 2013 г. N 44-ФЗ \"О контрактной системе в сфере закупок товаров, работ, услуг для обеспечения государственных и муниципальных нужд\"",null,null,"в соответствии с Федеральным законом от 18 июля 2011 г. N 223-ФЗ \"О закупках товаров, работ, услуг отдельными видами юридических лиц\""]
[null,null,null,"на 2017г. очередной финансовый год","на 20__ г. 1-ый год планового периода","на 20__ г. 2-ой год планового периода","на 20 17 г. очередной финансовый год","на 20__ г. 1-ый год планового периода","на 20__ г. 2-ой год планового периода","на 20__ г. очередной финансовый год","на 20__ г. 1-ый год планового периода","на 20__ г. 1-ый год планового периода"]
[1,2,3,4,5,6,7,8,9,10,11,12]
["Выплаты по расходам на закупку товаров, работ, услуг всего:",1,"X",{"$f":"D12+D14","v":863476.27},null,null,{"$f":"G12+G14","v":863476.27}]
["в том числе: на оплату контрактов заключенных до начала очередного финансового года:",1001,"X",{"$f":"D13","v":43311.270000000004},null,null,{"$f":"G13","v":43311.270000000004}]
[null,2017,null,{"$f":"'Таблица 2.2'!H88+'Таблица 2.2'!H89+'Таблица 2.2'!H91","v":43311.270000000004},null,null,{"$f":"D13","v":43311.270000000004}]
["на закупку товаров работ, услуг по году начала закупки:",2001,null,{"$f":"D15","v":820165},null,null,{"$f":"G15","v":820165}]
[null,2018,null,{"$f":"'Таблица 2.2'!H27+'Таблица 2.2'!H60","v":820165},null,null,{"$f":"D15","v":820165}]

{"sheet":"Таблица 2.2","index":5,"n_rows":98,"n_cols":8,"rows_kept":98,"cut":false,"hidden":false,"merged":[[70,8,70,11],[28,8,28,11],[30,8,30,11],[37,8,37,11],[39,8,39,11],[41,8,41,11],[42,8,42,11],[43,8,43,11],[36,8,36,11],[38,8,38,11],[40,8,40,11],[53,0,53,7],[48,0,48,7],[20,0,20,7],[27,0,27,7],[45,0,45,7],[0,6,0,7],[8,0,8,7],[14,0,14,7],[18,0,18,7],[2,0,2,7],[4,0,5,0],[4,1,5,1],[4,2,5,2],[4,3,4,7],[55,0,55,7],[60,0,60,7],[72,0,72,7],[94,0,94,7],[77,0,77,7],[81,0,81,7]]}
[null,null,null,null,null,null,"Таблица 2.2"]
[]
["Показатели по поступлениям и выплатам бюджетного учреждения (подразделения), детализировано"]
[null,null,null,null,null,null,null,"улыбка"]
["№ п\\п","Наименование показателя","Код бюджетной классификации","Очередной финансовый год"]
[null,null,null,"I кв.","II кв.","III кв.","IV кв.","Всего "]
["1.","Остаток средств на начало планируемого года","Х",0,null,null,null,{"$f":"SUM(D7:G7)","v":0}]
["2.","Поступления, всего:","Х",{"$f":"SUM(D10:D14)","v":1430031.21},{"$f":"SUM(E10:E14)","v":1356779.57},{"$f":"SUM(F10:F14)","v":1266174.43},{"$f":"SUM(G10:G14)","v":1189744.3500000001},{"$f":"SUM(D8:G8)","v":5242729.5600000005}]
["в том числе:"]
["2.1.","Субсидии на выполнении муниципального задания, в том числе:",null,{"$f":"D18","v":1241071.56},{"$f":"E18","v":1228989.57},{"$f":"F18","v":1140725.43},{"$f":"G18","v":1069150.73},4679937.2899999991]
["2.2.","Субсидии на иные цели",null,{"$f":"D81","v":85759.65},{"$f":"E81","v":24590},22249,17393.62,149992.26999999999]
["2.3.","Бюджетные инвестиции",null,null,null,null,null,0]
["2.4.","Поступления от оказания бюджетным учреждением услуг (выполнение работ), предоставление которых для физических и юридических лиц осуществляется на платной основе",null,null,null,null,null,0]
["2.5.","Поступления от иной приносящей доход деятельности, всего:",null,{"$f":"D16+D17","v":103200},{"$f":"E16+E17","v":103200},{"$f":"F16+F17","v":103200},{"$f":"G16+G17","v":103200},412800]
["в том числе:"]
["2.5.1.","от сдачи имущества в аренду",null,null,null,null,null,0]
["2.5.2.","иные поступления",null,{"$f":"D53","v":103200},{"$f":"E53","v":103200},{"$f":"F53","v":103200},{"$f":"G53","v":103200},412800]
["3.","Выплаты за счет субсидии на финансовое обеспечение выполнения муниципального задания из местного бюджета, всего:","Х",{"$f":"D20+D27+D45+D48","v":1241071.56},{"$f":"E20+E27+E45+E48","v":1228989.57},{"$f":"F20+F27+F45+F48","v":1140725.43},{"$f":"G20+G27+G45+G48","v":1069150.73},4679937.2899999991]
["в том числе:"]
["3.1.","Расходы на выплаты персоналу в целях обеспечения выполнения функций государственными (муниципальными) органами, казенными учреждениями, органами управления государственными внебюджетными фондами, всего",100,{"$f":"SUM(D22:D26)","v":1054975},{"$f":"SUM(E22:E26)","v":1083855},{"$f":"SUM(F22:F26)","v":1094035},{"$f":"SUM(G22:G26)","v":1032723.73},4265588.7300000004]
["из них:"]
["3.1.1.","Заработная плата","075;0701;69 1 01 07300;111 (211)",238700,238700,238700,238700,954800]
["3.1.1.","Заработная плата","075;0701;69 1 01 76700;111 (211)",{"$f":"536800+29450","v":566250},{"$f":"536800+29450+22180","v":588430},{"$f":"536800+29450+30000","v":596250},{"$f":"536800+29450+30000","v":596250},{"$f":"SUM(D23:G23)","v":2347180}]
["3.1.2.","Прочие выплаты","075;0701;69 1 01 07300;112 (212)",null,null,null,null,0]
["3.1.3.","Начисления на выплаты по оплате труда","075;0701;69 1 01 07300;112 (213)",78975,78975,78975,{"$f":"78975-34943.45-25367.82-1000","v":17663.730000000003},{"$f":"SUM(D25:G25)","v":254588.73}]
["3.1.3.","Начисления на выплаты по оплате труда","075;0701;69 1 01 76700;119 (213)",{"$f":"162150+8900","v":171050},{"$f":"162150+8900+6700","v":177750},{"$f":"162150+8900+9060","v":180110},{"$f":"162150+8900+9060","v":180110},{"$f":"SUM(D26:G26)","v":709020}]
["3.2.","Закупка товаров, работ и услуг для обеспечения государственных (муниципальных) нужд, всего",200,{"$f":"SUM(D29:D44)","v":179863},{"$f":"SUM(E29:E44)","v":144884.57},{"$f":"SUM(F29:F44)","v":46440.43},{"$f":"SUM(G29:G44)","v":36177},{"$f":"SUM(D27:G27)","v":407365}]
["из них:"]
["3.2.1.","Услуги связи","075;0701;69 1 01 07300;244 (221)",2700,2700,2700,2700,10800]
["3.2.2.","Транспортные услуги","075;0701;69 1 01 07300;244 (222)",null,null,null,null,0]
["3.2.3.","Коммунальные услуги","075;0701;69 1 01 07300;244 (223)",{"$f":"54475+50000","v":104475},{"$f":"54475+51459.57","v":105934.57},{"$f":"54475-46984.57","v":7490.43},{"$f":"54475-50000-4475","v":0},217900]
["3.2.4.","Арендная плата за пользование имуществом","075;0701;69 1 01 07300;244 (224)",null,null,null,null,0]
["3.2.5.","Работы, услуги по содержанию имущества","075;0701;69 1 01 07300;244 (225)",null,null,null,null,0]
["3.2.6.","Прочие работы, услуги","075;0701;69 1 01 07300;244 (226)",null,null,null,null,0]
["3.2.7.","Прочие расходы","075;0701;69 1 01 07300;244 (290)",null,null,null,null,0]
["3.2.8.","Увеличение стоимости основных средств","075;0701;69 1 01 07300;244 (310)",null,null,null,null,{"$f":"SUM(D36:G36)","v":0}]
["3.2.8.","Увеличение стоимости основных средств","075;0701;69 1 01 76700;244 (310)",24600,null,null,null,{"$f":"SUM(D37:G37)","v":24600}]
["3.2.9.","Увеличение стоимости материальных запасов","075;0701;69 1 01 07300;244 (343)",null,null,null,null,{"$f":"SUM(D38:G38)","v":0}]
["3.2.9.","Увеличение стоимости материальных запасов","075;0701;69 1 01 07300;244 (344)",{"$f":"18125+2773","v":20898},18125,18125,{"$f":"18125-2773","v":15352},72500]
["3.2.9.","Увеличение стоимости материальных запасов","075;0701;69 1 01 07300;244 (345)",330,null,null,null,{"$f":"SUM(D40:G40)","v":330}]
["3.2.9.","Увеличение стоимости материальных запасов","075;0701;69 1 01 07300;244 (346)",4200,null,null,null,4200]
["3.2.9.","Увеличение стоимости материальных запасов","075;0701;69 10 1 76900;244 (344)",18125,18125,18125,18125,72500]
["3.2.9.","Увеличение стоимости материальных запасов","075;0701;69 10 1 76900;244 (345)",335,null,null,null,335]
["3.2.9.","Увеличение стоимости материальных запасов","075;0701;69 10 1 76900;244 (346)",4200,null,null,null,4200]
["3.3.","Социальное обеспечение и иные выплаты населению, всего:",300,{"$f":"D47","v":0},{"$f":"E47","v":0},{"$f":"F47","v":0},{"$f":"G47","v":0},0]
["из них:"]
["3.3.1.","Пособия по социальной помощи населению",null,null,null,null,null,0]
["3.4.","Иные бюджетные ассигнования, всего:",800,{"$f":"SUM(D50:D52)","v":6233.5599999999995},{"$f":"SUM(E50:E52)","v":250},{"$f":"SUM(F50:F52)","v":250},{"$f":"SUM(G50:G52)","v":250},6983.5599999999995]
["из них:"]
["3.4.1.","Уплата налога на имущество организаций и земельного налога","075;0701;69 1 01 07300;851 (291)",250,250,250,250,1000]
["3.4.2.","Уплата прочих налогов, сборов","075;0701;69 1 01 07300;852 (292)",null,null,null,null,0]
["3.4.3.","Уплата иных платежей","075;0701;69 1 01 07300;853(293)",{"$f":"5000+983.56","v":5983.5599999999995},null,null,null,5983.5599999999995]
["4.","Выплаты за счет поступлений от оказания услуг (выполнения работ) на платной основе и от иной приносящей доход деятельности, всего:","Х",{"$f":"D55+D60+D72","v":103200},{"$f":"E55+E60+E72","v":103200},{"$f":"F55+F60+F72","v":103200},{"$f":"G55+G60+G72","v":103200},412800]
["в том числе:"]
["4.1.","Расходы на выплаты персоналу в целях обеспечения выполнения функций государственными (муниципальными) органами, казенными учреждениями, органами управления государственными внебюджетными фондами, всего",100,{"$f":"SUM(D57:D59)","v":0},{"$f":"SUM(E57:E59)","v":0},{"$f":"SUM(F57:F59)","v":0},{"$f":"SUM(G57:G59)","v":0},{"$f":"SUM(D55:G55)","v":0}]
["из них:"]
["4.1.1.","Заработная плата",null,null,null,null,null,{"$f":"SUM(D57:G57)","v":0}]
["4.1.2.","Прочие выплаты",null,null,null,null,null,{"$f":"SUM(D58:G58)","v":0}]
["4.1.3.","Начисления на выплаты по оплате труда",null,null,null,null,null,{"$f":"SUM(D59:G59)","v":0}]
["4.2.","Закупка товаров, работ и услуг для обеспечения государственных (муниципальных) нужд, всего",200,{"$f":"SUM(D62:D71)","v":103200},{"$f":"SUM(E62:E71)","v":103200},{"$f":"SUM(F62:F71)","v":103200},{"$f":"SUM(G62:G71)","v":103200},{"$f":"SUM(D60:G60)","v":412800}]
["из них:"]
["4.2.1.","Услуги связи","075;0701;00 0 00 00000 244  (221)",null,null,null,null,{"$f":"SUM(D62:G62)","v":0}]
["4.2.2.","Транспортные услуги","075;0701;00 0 00 00000 244  (222)",null,null,null,null,0]
["4.2.3.","Коммунальные услуги","075;0701;00 0 00 00000 244  (223)",null,null,null,null,0]
["4.2.4.","Арендная плата за пользование имуществом","075;0701;00 0 00 00000 244  (224)",null,null,null,null,0]
["4.2.5.","Работы, услуги по содержанию имущества","075;0701;00 0 00 00000 244  (225)",null,null,null,null,0]
["4.2.6.","Прочие работы, услуги","075;0701;00 0 00 00000 244  (226)",null,null,null,null,0]
["4.2.7.","Прочие расходы","075;0701;00 0 00 00000 244  (290)",null,null,null,null,0]
["4.2.8.","Увеличение стоимости основных средств","075;0701;00 0 00 00000 244  (310)",null,null,null,null,0]
["4.2.9.","Увеличение стоимости материальных запасов","075;0701;00 0 00 00000 244  (343)",null,null,null,null,0]
["4.2.10.","Увеличение стоимости материальных запасов","075;0701;00 0 00 00000 244  (344)",103200,103200,103200,103200,412800]
["4.3.","Иные бюджетные ассигнования, всего:",800,{"$f":"SUM(D74:D76)","v":0},{"$f":"SUM(E74:E76)","v":0},{"$f":"SUM(F74:F76)","v":0},{"$f":"SUM(G74:G76)","v":0},{"$f":"SUM(D72:G72)","v":0}]
["из них:"]
["4.3.1.","Уплата налога на имущество организаций и земельного налога",null,null,null,null,null,{"$f":"SUM(D74:G74)","v":0}]
["4.3.2.","Уплата прочих налогов, сборов",null,null,null,null,null,{"$f":"SUM(D75:G75)","v":0}]
["4.3.3.","Уплата иных платежей",null,null,null,null,null,{"$f":"SUM(D76:G76)","v":0}]
["5.","Выплаты за счет поступлений на осуществление бюджетных инвестиций, всего ","Х",{"$f":"SUM(D79:D80)","v":0},{"$f":"SUM(E79:E80)","v":0},{"$f":"SUM(F79:F80)","v":0},{"$f":"SUM(G79:G80)","v":0},{"$f":"SUM(D77:G77)","v":0}]
["в том числе:"]
[null,null,null,null,null,null,null,0]
[null,null,null,null,null,null,null,0]
["6.","Выплаты за счет субсидии на иные цели, всего","Х",{"$f":"SUM(D83:D93)","v":85759.65},{"$f":"SUM(E83:E93)","v":24590},22249,17393.62,149992.26999999999]
["в том числе:"]
["6.1","Заработная плата (софинансирование)","075;0701;37 1 01 S2300;111 (211)",1798,1798,null,null,{"$f":"SUM(D83:G83)","v":3596}]
["6.2","Начисления на выплаты по оплате труда (софинансирование)","075;0701;37 1 01 S2300;119 (213)",543,543,null,null,{"$f":"SUM(D84:G84)","v":1086}]
["6.3","Заработная плата (область)","075;0701;37 1 01 72300;111 (211)",{"$f":"17089+3730.82","v":20819.82},17089,17089,{"$f":"17089-3730.82","v":13358.18},68356]
["6.4","Начисления на выплаты по оплате труда (область))","075;0701;37 1 01 72300;119 (213)",{"$f":"5163+1124.56","v":6287.5599999999995},5160,5160,{"$f":"5160-1124.56","v":4035.44},20642.999999999996]
["6.5","Начисления на выплаты по оплате труда (кредиторка)","075;0701;69 1 03 073Г0;119 (213)",{"$f":"1000+2000+5000","v":8000},null,null,null,{"$f":"SUM(D87:G87)","v":8000}]
["6.6","Услуги связи (кредиторка)","075;0701;69 1 03 073Г0;244 (221)",446.04,null,null,null,{"$f":"SUM(D88:G88)","v":446.04}]
["6.7","Коммунальные услуги (кредиторка)","075;0701;69 1 03 073Г0;244 (223) ",{"$f":"24497.41+4469.82-2000","v":26967.23},null,null,null,{"$f":"SUM(D89:G89)","v":26967.23}]
["6.8","Уплата налога на имущество организаций и земельного налога (кредиторка)","075;0701;69 1 03 073Г0;851 (291)",5000,null,null,null,5000]
["6.9","Увеличение стоимости материальных запасов (кредиторка)","075;0701;69 1 03 073Г0;851 (344)",{"$f":"20898-5000","v":15898},null,null,null,{"$f":"SUM(D91:G91)","v":15898}]
[null,null,null,null,null,null,null,0]
[]
["7.","Остаток средств на конец планируемого года","Х",{"$f":"SUM(D96:D98)","v":0},{"$f":"SUM(E96:E98)","v":0},{"$f":"SUM(F96:F98)","v":0},{"$f":"SUM(G96:G98)","v":0},0]
["в том числе:"]
["7.1.","остаток субсидии на выполнение муниципального задания",null,null,null,null,null,0]
["7.2.","остаток целевой субсидии",null,null,null,null,null,0]
["7.3.","остаток средств от оказания услуг (выполнения работ) на платной основе и от иной приносящей доход деятельности",null,null,null,null,null,0]

{"sheet":"Таблица 3","index":6,"n_rows":17,"n_cols":3,"rows_kept":17,"cut":false,"hidden":false,"merged":[[5,0,5,2],[7,0,7,2],[6,0,6,2],[8,0,8,2]]}
[]
[]
[]
[null,null,"Таблица 3"]
[]
["Сведения о средствах, поступающих \n"]
["во временное распоряжение учреждения (подразделения)"]
["на    08 мая   20 18  г."]
["(очередной финансовый год)"]
[]
["Наименование показателя","Код строки","Сумма (руб., с точностью до двух знаков после запятой - 0,00)"]
[1,2,3]
["Остаток средств на начало года",10,0]
["Остаток средств на конец года",20,0]
["Поступление",30,0]
[]
["Выбытие",40,0]

{"sheet":"Таблица 4","index":7,"n_rows":19,"n_cols":3,"rows_kept":19,"cut":false,"hidden":false,"merged":[[2,0,2,2]]}
[null,null,"Таблица 4"]
[]
["Справочная информация"]
[]
[]
["Наименование показателя","Код строки","Сумма (тыс. руб.)"]
[1,2,3]
["Объем публичных обязательств, всего:",10,0]
["Объем бюджетных инвестиций (в части переданных полномочий государственного (муниципального) заказчика в соответствии с Бюджетным кодексом Российской Федерации), всего:",20,0]
["Объем средств, поступивших во временное распоряжение, всего:",30,0]
[]
[]
["Руководитель      "]
["финансово-экономической службы                           Г.В Колина"]
[]
["Ответственный исполнитель                                         И.В.Радченко"]
[]
[]
["\" 07 \"  мая   2018г."]